bitfinex/quotes_BTCUSD_20230905
["timestamp","ask_amount","ask_price","bid_price","bid_amount"]
[1693886392382,0.002,25692.0,25691.0,2.20882027]
[1693886392609,0.002,25692.0,25691.0,2.21500027]
[1693886392790,0.002,25692.0,25691.0,2.21470027]
[1693886392991,0.002,25692.0,25691.0,2.43211575]
[1693886393185,0.002,25692.0,25691.0,2.42983575]
[1693886393388,0.002,25692.0,25691.0,2.21062027]
[1693886393593,0.002,25692.0,25691.0,2.21032027]
[1693886393762,0.002,25692.0,25691.0,2.21080027]
[1693886393988,0.002,25692.0,25691.0,2.44760256]
[1693886394166,0.002,25692.0,25691.0,2.44430256]
[1693886394392,0.002,25692.0,25691.0,2.44358256]
[1693886394566,0.002,25692.0,25691.0,2.20744027]
[1693886394772,0.002,25692.0,25691.0,2.21122027]
[1693886394976,0.002,25692.0,25691.0,2.20942027]
[1693886395195,0.002,25692.0,25691.0,2.21074027]
[1693886395397,0.002,25692.0,25691.0,2.21860027]
[1693886395598,0.002,25692.0,25691.0,2.21968027]
[1693886395804,0.002,25692.0,25691.0,2.21950027]
[1693886396034,0.002,25692.0,25691.0,2.21980027]
[1693886396255,0.002,25692.0,25691.0,2.22508027]
[1693886396543,0.002,25692.0,25691.0,2.22520027]
[1693886396747,0.002,25692.0,25691.0,2.23066027]
[1693886396948,0.002,25692.0,25691.0,2.24916027]
[1693886397156,0.002,25692.0,25691.0,2.53890156]
[1693886397360,0.002,25692.0,25691.0,2.53176156]
[1693886397533,0.002,25692.0,25691.0,2.51680434]
[1693886397737,0.002,25692.0,25691.0,2.23278027]
[1693886397942,0.002,25692.0,25691.0,2.23266027]
[1693886398439,0.002,25692.0,25691.0,2.50243556]
[1693886398762,0.002,25692.0,25691.0,2.23332027]
[1693886398983,0.002,25692.0,25691.0,2.23224027]
[1693886399195,0.002,25692.0,25691.0,2.23212027]
[1693886399362,0.002,25692.0,25691.0,2.23188027]
[1693886399572,0.002,25692.0,25691.0,2.23164027]
[1693886399746,0.002,25692.0,25691.0,2.23242027]
[1693886399958,0.002,25692.0,25691.0,2.23236027]
[1693886400153,0.002,25692.0,25691.0,2.23224027]
[1693886400330,0.002,25692.0,25691.0,2.23440027]
[1693886400528,0.002,25692.0,25691.0,2.23410027]
[1693886400731,0.002,25692.0,25691.0,2.50643885]
[1693886400930,0.002,25692.0,25691.0,2.21188027]
[1693886401135,0.002,25692.0,25691.0,2.51889984]
[1693886401368,0.002,25692.0,25691.0,2.51880616]
[1693886401582,0.002,25692.0,25691.0,2.51670616]
[1693886401770,0.002,25692.0,25691.0,2.51634616]
[1693886401976,0.002,25692.0,25691.0,2.51448616]
[1693886402223,0.002,25692.0,25691.0,2.51340616]
[1693886402355,0.002,25692.0,25691.0,2.51310616]
[1693886402565,0.002,25692.0,25691.0,2.51682616]
[1693886402816,0.002,25692.0,25691.0,2.23052659]
[1693886403013,0.002,25692.0,25691.0,2.24942659]
[1693886403265,0.002,25692.0,25691.0,2.24648659]
[1693886403442,0.002,25692.0,25691.0,2.24930659]
[1693886403642,0.002,25692.0,25691.0,2.24894659]
[1693886403845,0.002,25692.0,25691.0,2.24480659]
[1693886404059,0.002,25692.0,25691.0,2.24444659]
[1693886404260,0.002,25692.0,25691.0,2.24498659]
[1693886404459,0.002,25692.0,25691.0,2.25008659]
[1693886404662,0.002,25692.0,25691.0,2.47146659]
[1693886404931,0.002,25692.0,25691.0,2.47602659]
[1693886405253,0.002,25692.0,25691.0,2.48046659]
[1693886405457,0.002,25692.0,25691.0,2.47458659]
[1693886405640,0.002,25692.0,25691.0,2.47554659]
[1693886405876,0.002,25692.0,25691.0,2.47590659]
[1693886406090,0.002,25692.0,25691.0,2.47866659]
[1693886406298,0.002,25692.0,25691.0,2.48658659]
[1693886406501,0.002,25692.0,25691.0,2.59083942]
[1693886406705,0.002,25692.0,25691.0,2.65184264]
[1693886406879,0.002,25692.0,25691.0,2.63792264]
[1693886407108,0.002,25692.0,25691.0,2.60468264]
[1693886407314,0.002,25692.0,25691.0,2.58740264]
[1693886407521,0.002,25692.0,25691.0,2.48818981]
[1693886407721,0.002,25692.0,25691.0,2.60846733]
[1693886407929,0.002,25692.0,25691.0,2.60648733]
[1693886408133,0.002,25692.0,25691.0,2.57810733]
[1693886408343,0.002,25692.0,25691.0,2.56694733]
[1693886408544,0.002,25692.0,25691.0,2.56568733]
[1693886408750,0.002,25692.0,25691.0,2.56610733]
[1693886408949,0.002,25692.0,25691.0,2.56802733]
[1693886409128,0.002,25692.0,25691.0,2.56574733]
[1693886409335,0.002,25692.0,25691.0,2.56862733]
[1693886409692,0.002,25692.0,25691.0,2.56886733]
[1693886409923,0.002,25692.0,25691.0,2.56976733]
[1693886410127,0.002,25692.0,25691.0,2.56892733]
[1693886410330,0.002,25692.0,25691.0,2.56898733]
[1693886410529,0.002,25692.0,25691.0,2.57216733]
[1693886410704,0.002,25692.0,25691.0,2.57246733]
[1693886410907,0.002,25692.0,25691.0,2.57048733]
[1693886411111,0.002,25692.0,25691.0,2.56940733]
[1693886411308,0.002,25692.0,25691.0,2.57000733]
[1693886411511,0.002,25692.0,25691.0,2.57066733]
[1693886411715,0.002,25692.0,25691.0,2.57252733]
[1693886411919,0.002,25692.0,25691.0,2.57288733]
[1693886412121,0.002,25692.0,25691.0,2.57312733]
[1693886412345,0.002,25692.0,25691.0,2.58302733]
[1693886412539,0.002,25692.0,25691.0,2.58362733]
[1693886412753,0.002,25692.0,25691.0,2.58074733]
[1693886412944,0.002,25692.0,25691.0,2.58014733]
[1693886413142,0.002,25692.0,25691.0,2.58092733]
[1693886413357,0.002,25692.0,25691.0,2.58110733]
[1693886413558,0.002,25692.0,25691.0,2.58362733]
[1693886413757,0.002,25692.0,25691.0,2.58062733]
[1693886413955,0.002,25692.0,25691.0,2.57978733]
[1693886414163,0.002,25692.0,25691.0,2.57828733]
[1693886414365,0.002,25692.0,25691.0,2.57768733]
[1693886414538,0.002,25692.0,25691.0,2.57984733]
[1693886414739,0.002,25692.0,25691.0,2.58128733]
[1693886414994,0.002,25692.0,25691.0,2.58116733]
[1693886415187,0.002,25692.0,25691.0,2.58128733]
[1693886415391,0.002,25692.0,25691.0,2.57996733]
[1693886415613,0.002,25692.0,25691.0,2.58428733]
[1693886415794,0.002,25692.0,25691.0,2.58170733]
[1693886415968,0.002,25692.0,25691.0,2.55588733]
[1693886416181,0.002,25692.0,25691.0,2.55582733]
[1693886416381,0.002,25692.0,25691.0,2.55768733]
[1693886416591,0.002,25692.0,25691.0,2.55786733]
[1693886416792,0.002,25692.0,25691.0,2.56134733]
[1693886417027,0.002,25692.0,25691.0,2.55792733]
[1693886417167,0.002,25692.0,25691.0,2.55810733]
[1693886417371,0.002,25692.0,25691.0,2.55612733]
[1693886417586,0.002,25692.0,25691.0,2.55912733]
[1693886417803,0.002,25692.0,25691.0,2.56344733]
[1693886418016,0.002,25692.0,25691.0,2.56098733]
[1693886418354,0.002,25692.0,25691.0,2.31182981]
[1693886418563,0.002,25692.0,25691.0,2.31566981]
[1693886418756,0.002,25692.0,25691.0,2.31710981]
[1693886418959,0.002,25692.0,25691.0,2.60808469]
[1693886419166,0.002,25692.0,25691.0,2.31716981]
[1693886419368,0.002,25692.0,25691.0,2.32124981]
[1693886419580,0.002,25692.0,25691.0,2.33168981]
[1693886419786,0.002,25692.0,25691.0,2.33474981]
[1693886419994,0.002,25692.0,25691.0,2.46914981]
[1693886420196,0.002,25692.0,25691.0,2.47034981]
[1693886420396,0.002,25692.0,25691.0,2.46998981]
[1693886420537,0.002,25692.0,25691.0,2.46878981]
[1693886420740,0.002,25692.0,25691.0,2.47046981]
[1693886420954,0.002,25692.0,25691.0,2.47934981]
[1693886421156,0.002,25692.0,25691.0,2.59241796]
[1693886421378,0.002,25692.0,25691.0,2.59085796]
[1693886421586,0.002,25692.0,25691.0,2.59073796]
[1693886421788,0.002,25692.0,25691.0,2.58821796]
[1693886421991,0.002,25692.0,25691.0,2.60921796]
[1693886422190,0.002,25692.0,25691.0,2.60957796]
[1693886422411,0.002,25692.0,25691.0,2.60969796]
[1693886422656,0.002,25692.0,25691.0,2.60309796]
[1693886422807,0.002,25692.0,25691.0,2.59841796]
[1693886423009,0.002,25692.0,25691.0,2.59301796]
[1693886423215,0.002,25692.0,25691.0,2.63206452]
[1693886423418,0.002,25692.0,25691.0,2.62432452]
[1693886423615,0.002,25692.0,25691.0,2.62336452]
[1693886423813,0.002,25692.0,25691.0,2.58494452]
[1693886424044,0.002,25692.0,25691.0,2.58710452]
[1693886424216,0.002,25692.0,25691.0,2.58734452]
[1693886424396,0.002,25692.0,25691.0,2.58782452]
[1693886424600,0.002,25692.0,25691.0,2.68173267]
[1693886424799,0.002,25692.0,25691.0,2.68191267]
[1693886425000,0.002,25692.0,25691.0,2.67951267]
[1693886425321,0.002,25692.0,25691.0,2.68809267]
[1693886425527,0.002,25692.0,25691.0,2.68857267]
[1693886425729,0.002,25692.0,25691.0,2.68809267]
[1693886425930,0.002,25692.0,25691.0,2.68773267]
[1693886426132,0.002,25692.0,25691.0,2.68827267]
[1693886426360,0.002,25692.0,25691.0,2.68815267]
[1693886426698,0.002,25692.0,25691.0,2.68461267]
[1693886426902,0.002,25692.0,25691.0,2.59400452]
[1693886427111,0.002,25692.0,25691.0,2.57528452]
[1693886427317,0.002,25692.0,25691.0,2.57282452]
[1693886427518,0.002,25692.0,25691.0,2.57540452]
[1693886427720,0.002,25692.0,25691.0,2.57534452]
[1693886427935,0.002,25692.0,25691.0,2.57540452]
[1693886428136,0.002,25692.0,25691.0,2.57570452]
[1693886428340,0.002,25692.0,25691.0,2.57384452]
[1693886428563,0.002,25692.0,25691.0,2.57402452]
[1693886428764,0.002,25692.0,25691.0,2.57588452]
[1693886428965,0.002,25692.0,25691.0,2.57414452]
[1693886429164,0.002,25692.0,25691.0,2.57408452]
[1693886429443,0.002,25692.0,25691.0,2.57660452]
[1693886429658,0.002,25692.0,25691.0,2.57612452]
[1693886429802,0.002,25692.0,25691.0,2.57642452]
[1693886430008,0.002,25692.0,25691.0,2.57450452]
[1693886430212,0.002,25692.0,25691.0,2.57468452]
[1693886430421,0.002,25692.0,25691.0,2.53456452]
[1693886430653,0.002,25692.0,25691.0,2.52508452]
[1693886430990,0.002,25692.0,25691.0,2.52580452]
[1693886431098,0.002,25692.0,25691.0,2.52748452]
[1693886431308,0.002,25692.0,25691.0,2.53030452]
[1693886431517,0.002,25692.0,25691.0,2.52850452]
[1693886431718,0.002,25692.0,25691.0,2.52856452]
[1693886431943,0.002,25692.0,25691.0,2.52898452]
[1693886432169,0.002,25692.0,25691.0,2.52946452]
[1693886432320,0.002,25692.0,25691.0,2.53168452]
[1693886432524,0.002,25692.0,25691.0,2.52868452]
[1693886432722,0.002,25692.0,25691.0,2.52826452]
[1693886432949,0.002,25692.0,25691.0,2.52664452]
[1693886433148,0.002,25692.0,25691.0,2.14149925]
[1693886433363,0.002,25692.0,25691.0,2.13831925]
[1693886433569,0.002,25692.0,25691.0,2.13867925]
[1693886433764,0.002,25692.0,25691.0,2.13813925]
[1693886433967,0.002,25692.0,25691.0,2.13843925]
[1693886434197,0.002,25692.0,25691.0,2.13849925]
[1693886434414,0.002,25692.0,25691.0,2.13957925]
[1693886434620,0.002,25692.0,25691.0,2.14053925]
[1693886434832,0.002,25692.0,25691.0,2.14011925]
[1693886435028,0.002,25692.0,25691.0,2.13915925]
[1693886435241,0.002,25692.0,25691.0,2.13903925]
[1693886435443,0.002,25692.0,25691.0,2.13897925]
[1693886435646,0.002,25692.0,25691.0,2.13969925]
[1693886435855,0.002,25692.0,25691.0,2.13957925]
[1693886436123,0.002,25692.0,25691.0,2.14029925]
[1693886436536,0.002,25692.0,25691.0,2.14035925]
[1693886436735,0.002,25692.0,25691.0,2.14071925]
[1693886437051,0.002,25692.0,25691.0,2.14077925]
[1693886437247,0.002,25692.0,25691.0,2.14071925]
[1693886437424,0.002,25692.0,25691.0,2.14065925]
[1693886437626,0.002,25692.0,25691.0,2.14071925]
[1693886437829,0.002,25692.0,25691.0,2.15085925]
[1693886438031,0.002,25692.0,25691.0,2.15079925]
[1693886438227,0.002,25692.0,25691.0,2.15073925]
[1693886438595,0.002,25692.0,25691.0,2.15067925]
[1693886438794,0.002,25692.0,25691.0,2.15079925]
[1693886439039,0.002,25692.0,25691.0,2.15073925]
[1693886439268,0.002,25692.0,25691.0,2.15019925]
[1693886439473,0.002,25692.0,25691.0,2.15025925]
[1693886439646,0.002,25692.0,25691.0,2.14947925]
[1693886440056,0.002,25692.0,25691.0,2.14917925]
[1693886440491,0.002,25692.0,25691.0,2.14983925]
[1693886440718,0.002,25692.0,25691.0,2.15595925]
[1693886440893,0.002,25692.0,25691.0,2.15787925]
[1693886441132,0.002,25692.0,25691.0,2.15769925]
[1693886441250,0.01542565,25692.0,25691.0,2.16051925]
[1693886441452,0.01542565,25692.0,25691.0,2.16039925]
[1693886441651,0.01542565,25692.0,25691.0,2.15961925]
[1693886442258,0.01542565,25692.0,25691.0,2.15955925]
[1693886442461,0.01542565,25692.0,25691.0,2.16069925]
[1693886442661,0.01542565,25692.0,25691.0,2.15817925]
[1693886442895,0.002,25692.0,25691.0,2.15817925]
[1693886443065,0.002,25692.0,25691.0,2.15823925]
[1693886443386,0.002,25692.0,25691.0,2.15751925]
[1693886443611,0.002,25692.0,25691.0,2.15577925]
[1693886443811,0.002,25692.0,25691.0,2.15571925]
[1693886443991,0.002,25692.0,25691.0,2.15547925]
[1693886444395,0.002,25692.0,25691.0,2.15541925]
[1693886444597,0.002,25692.0,25691.0,2.15523925]
[1693886444798,0.002,25692.0,25691.0,2.15535925]
[1693886445134,0.002,25692.0,25691.0,2.15529925]
[1693886445341,0.002,25692.0,25691.0,2.15487925]
[1693886445719,0.002,25692.0,25691.0,2.15469925]
[1693886445922,0.002,25692.0,25691.0,2.15499925]
[1693886446248,0.002,25692.0,25691.0,2.15475925]
[1693886446393,0.002,25692.0,25691.0,2.15307925]
[1693886446595,0.002,25692.0,25691.0,2.15373925]
[1693886446808,0.002,25692.0,25691.0,2.15367925]
[1693886447008,0.002,25692.0,25691.0,2.15277925]
[1693886447208,0.002,25692.0,25691.0,2.15271925]
[1693886447617,0.002,25692.0,25691.0,2.15349925]
[1693886447828,0.002,25692.0,25691.0,2.15055925]
[1693886448061,0.002,25692.0,25691.0,2.14965925]
[1693886448246,0.002,25692.0,25691.0,2.14941925]
[1693886448445,0.002,25692.0,25691.0,2.14947925]
[1693886448692,0.002,25692.0,25691.0,2.14959925]
[1693886449021,0.002,25692.0,25691.0,2.14965925]
[1693886449144,0.002,25692.0,25691.0,2.15031925]
[1693886449343,0.002,25692.0,25691.0,2.15043925]
[1693886449543,0.002,25692.0,25691.0,2.15025925]
[1693886449745,0.002,25692.0,25691.0,2.15013925]
[1693886450055,0.002,25692.0,25691.0,2.09099603]
[1693886450250,0.002,25692.0,25691.0,2.09033603]
[1693886450504,0.002,25692.0,25691.0,2.09141603]
[1693886450680,0.002,25692.0,25691.0,2.09063603]
[1693886450885,0.002,25692.0,25691.0,2.09135603]
[1693886451421,0.002,25692.0,25691.0,2.09207603]
[1693886452404,0.002,25692.0,25691.0,2.09183603]
[1693886452575,0.002,25692.0,25691.0,2.09081603]
[1693886452784,0.002,25692.0,25691.0,2.09021603]
[1693886452997,0.002,25692.0,25691.0,2.08775603]
[1693886453206,0.002,25692.0,25691.0,1.25407632]
[1693886453409,0.002,25692.0,25691.0,0.88705632]
[1693886453631,0.002,25692.0,25691.0,0.45889132]
[1693886454395,0.002,25692.0,25691.0,0.88705632]
[1693886456909,0.002,25692.0,25691.0,1.31522132]
[1693886460932,0.002,25692.0,25691.0,1.54738517]
[1693886461136,0.002,25692.0,25691.0,1.54978517]
[1693886461340,0.002,25692.0,25691.0,1.54972517]
[1693886461520,0.002,25692.0,25691.0,1.54942517]
[1693886461724,0.002,25692.0,25691.0,1.54888517]
[1693886461860,0.002,25692.0,25691.0,1.54468517]
[1693886462234,0.002,25692.0,25691.0,1.54096517]
[1693886462661,0.002,25692.0,25691.0,1.54102517]
[1693886462880,0.002,25692.0,25691.0,1.54060517]
[1693886463112,0.002,25692.0,25691.0,1.54012517]
[1693886463292,0.002,25692.0,25691.0,1.54078517]
[1693886463499,0.002,25692.0,25691.0,1.54192517]
[1693886463742,0.002,25692.0,25691.0,1.54012517]
[1693886463947,0.002,25692.0,25691.0,1.53892517]
[1693886464147,0.002,25692.0,25691.0,1.72820517]
[1693886464284,0.002,25692.0,25691.0,1.72814517]
[1693886464514,0.002,25692.0,25691.0,1.72832517]
[1693886464720,0.002,25692.0,25691.0,1.72778517]
[1693886464898,0.002,25692.0,25691.0,1.72772517]
[1693886465281,0.002,25692.0,25691.0,1.72778517]
[1693886465389,0.002,25692.0,25691.0,1.72850517]
[1693886465863,0.002,25692.0,25691.0,1.72844517]
[1693886466071,0.002,25692.0,25691.0,1.72772517]
[1693886466367,0.002,25692.0,25691.0,1.72700517]
[1693886466569,0.002,25692.0,25691.0,1.72730517]
[1693886466799,0.002,25692.0,25691.0,1.72652517]
[1693886466980,0.002,25692.0,25691.0,1.72760517]
[1693886467177,0.002,25692.0,25691.0,1.73720517]
[1693886467378,0.002,25692.0,25691.0,2.38690659]
[1693886467593,0.002,25692.0,25691.0,2.42002659]
[1693886467764,0.002,25692.0,25691.0,2.41582659]
[1693886467972,0.002,25692.0,25691.0,2.41564659]
[1693886468174,0.002,25692.0,25691.0,2.41546659]
[1693886468506,0.002,25692.0,25691.0,2.41504659]
[1693886468726,0.002,25692.0,25691.0,2.41240659]
[1693886468929,0.002,25692.0,25691.0,2.41312659]
[1693886469135,0.002,25692.0,25691.0,2.41390659]
[1693886469314,0.002,25692.0,25691.0,2.41342659]
[1693886469490,0.002,25692.0,25691.0,2.41306659]
[1693886469707,0.002,25692.0,25691.0,2.41282659]
[1693886469907,0.002,25692.0,25691.0,2.41354659]
[1693886470110,0.002,25692.0,25691.0,2.41336659]
[1693886470407,0.002,25692.0,25691.0,2.41342659]
[1693886470668,0.002,25692.0,25691.0,2.41222659]
[1693886470824,0.002,25692.0,25691.0,2.41180659]
[1693886470991,0.002,25692.0,25691.0,2.41168659]
[1693886471188,0.002,25692.0,25691.0,2.41180659]
[1693886471390,0.002,25692.0,25691.0,2.41240659]
[1693886471593,0.002,25692.0,25691.0,2.41498659]
[1693886471795,0.002,25692.0,25691.0,2.40880659]
[1693886472027,0.002,25692.0,25691.0,2.64836055]
[1693886472256,0.002,25692.0,25691.0,2.40802659]
[1693886472423,0.002,25692.0,25691.0,2.40784659]
[1693886472793,0.002,25692.0,25691.0,2.40664659]
[1693886473395,0.002,25692.0,25691.0,2.40634659]
[1693886473595,0.002,25692.0,25691.0,2.40562659]
[1693886473749,0.002,25692.0,25691.0,2.40574659]
[1693886473968,0.002,25692.0,25691.0,2.40580659]
[1693886474155,0.002,25692.0,25691.0,2.40574659]
[1693886474503,0.002,25692.0,25691.0,2.40544659]
[1693886474713,0.002,25692.0,25691.0,2.40520659]
[1693886474867,0.002,25692.0,25691.0,2.43618231]
[1693886475069,0.002,25692.0,25691.0,2.43594231]
[1693886475310,0.002,25692.0,25691.0,2.43600231]
[1693886475511,0.002,25692.0,25691.0,2.43570231]
[1693886475717,0.002,25692.0,25691.0,2.72323041]
[1693886475915,0.002,25692.0,25691.0,2.43546231]
[1693886476145,0.002,25692.0,25691.0,2.71749472]
[1693886476345,0.002,25692.0,25691.0,2.43540231]
[1693886476747,0.002,25692.0,25691.0,2.43546231]
[1693886476957,0.002,25692.0,25691.0,2.65779503]
[1693886477161,0.002,25692.0,25691.0,2.65707503]
[1693886477367,0.002,25692.0,25691.0,2.65653503]
[1693886477573,0.002,25692.0,25691.0,2.65659503]
[1693886477776,0.002,25692.0,25691.0,2.43456231]
[1693886477977,0.002,25692.0,25691.0,2.43450231]
[1693886478318,0.002,25692.0,25691.0,2.71239514]
[1693886478517,0.002,25692.0,25691.0,2.71287514]
[1693886478720,0.002,25692.0,25691.0,2.71275514]
[1693886478924,0.002,25692.0,25691.0,2.71269514]
[1693886479128,0.002,25692.0,25691.0,2.71251514]
[1693886479335,0.002,25692.0,25691.0,2.71245514]
[1693886479564,0.002,25692.0,25691.0,2.71227514]
[1693886479771,0.002,25692.0,25691.0,2.71221514]
[1693886479977,0.002,25692.0,25691.0,2.70981514]
[1693886480180,0.01542651,25692.0,25691.0,2.43522231]
[1693886480383,0.01542651,25692.0,25691.0,2.67886173]
[1693886480588,0.01542651,25692.0,25691.0,2.43726231]
[1693886480814,0.01542651,25692.0,25691.0,2.43570231]
[1693886481030,0.01542651,25692.0,25691.0,2.43798231]
[1693886481239,0.01542651,25692.0,25691.0,2.43828231]
[1693886481414,0.01542651,25692.0,25691.0,2.43822231]
[1693886481668,0.01542651,25692.0,25691.0,2.43810231]
[1693886481875,0.01542651,25692.0,25691.0,2.69224803]
[1693886482049,0.01542651,25692.0,25691.0,2.69164803]
[1693886482278,0.01542651,25692.0,25691.0,2.69212803]
[1693886482413,0.01542651,25692.0,25691.0,2.43780231]
[1693886482615,0.01542651,25692.0,25691.0,2.43792231]
[1693886482815,0.01542651,25692.0,25691.0,2.44620231]
[1693886483018,0.01542651,25692.0,25691.0,3.21499546]
[1693886483247,0.002,25692.0,25691.0,3.37727769]
[1693886483419,0.002,25692.0,25691.0,3.36359769]
[1693886483618,0.002,25692.0,25691.0,3.26956954]
[1693886483820,0.002,25692.0,25691.0,3.26944954]
[1693886484185,0.002,25692.0,25691.0,3.26860954]
[1693886484388,0.002,25692.0,25691.0,3.27004954]
[1693886484521,0.002,25692.0,25691.0,3.26980954]
[1693886484766,0.002,25692.0,25691.0,3.26932954]
[1693886484967,0.002,25692.0,25691.0,3.26908954]
[1693886485183,0.002,25692.0,25691.0,3.26776954]
[1693886485381,0.002,25692.0,25691.0,3.36037507]
[1693886485605,0.002,25692.0,25691.0,3.36001507]
[1693886485813,0.002,25692.0,25691.0,3.35929507]
[1693886486082,0.002,25692.0,25691.0,3.35953507]
[1693886486419,0.002,25692.0,25691.0,3.35941507]
[1693886486627,0.002,25692.0,25691.0,3.36049507]
[1693886486869,0.002,25692.0,25691.0,3.36025507]
[1693886487075,0.002,25692.0,25691.0,3.36133507]
[1693886487302,0.002,25692.0,25691.0,3.36157507]
[1693886487507,0.002,25692.0,25691.0,3.36217507]
[1693886487712,0.002,25692.0,25691.0,3.36457507]
[1693886487925,0.002,25692.0,25691.0,3.36973507]
[1693886488128,0.002,25692.0,25691.0,3.37129507]
[1693886488332,0.002,25692.0,25691.0,3.36517507]
[1693886488551,0.002,25692.0,25691.0,3.36661507]
[1693886488754,0.002,25692.0,25691.0,3.36685507]
[1693886488959,0.002,25692.0,25691.0,3.36973507]
[1693886489162,0.002,25692.0,25691.0,3.36457507]
[1693886489372,0.002,25692.0,25691.0,3.36697507]
[1693886489578,0.002,25692.0,25691.0,3.36973507]
[1693886489735,0.002,25692.0,25691.0,3.37009507]
[1693886490257,0.002,25692.0,25691.0,3.36997507]
[1693886490474,0.002,25692.0,25691.0,3.37105507]
[1693886490681,0.002,25692.0,25691.0,3.37141507]
[1693886490888,0.002,25692.0,25691.0,3.37393507]
[1693886491122,0.002,25692.0,25691.0,3.37417507]
[1693886491535,0.002,25692.0,25691.0,3.37465507]
[1693886491746,0.002,25692.0,25691.0,3.37405507]
[1693886491950,0.002,25692.0,25691.0,3.37441507]
[1693886492174,0.0195,25695.0,25694.0,0.06]
[1693886492383,0.0195,25695.0,25694.0,2.94009593]
[1693886492612,0.0195,25695.0,25694.0,2.69262027]
[1693886492815,0.0195,25695.0,25694.0,3.27510027]
[1693886493081,0.0195,25695.0,25694.0,3.27714027]
[1693886493309,0.0195,25695.0,25694.0,3.27846027]
[1693886493567,0.0195,25695.0,25694.0,3.30216027]
[1693886493791,0.0195,25695.0,25694.0,3.30300027]
[1693886494014,0.0195,25695.0,25694.0,3.30264027]
[1693886494224,0.0195,25695.0,25694.0,3.30228027]
[1693886494443,0.0195,25695.0,25694.0,3.30312027]
[1693886494644,0.0195,25695.0,25694.0,3.30432027]
[1693886494845,0.0195,25695.0,25694.0,3.30596027]
[1693886495049,0.0195,25695.0,25694.0,3.30620027]
[1693886495222,0.0195,25695.0,25694.0,3.30632027]
[1693886495423,0.0195,25695.0,25694.0,3.30500027]
[1693886495648,0.0195,25695.0,25694.0,3.30380027]
[1693886495869,0.0195,25695.0,25694.0,3.30668027]
[1693886495983,0.0195,25695.0,25694.0,3.30644027]
[1693886496189,0.0195,25695.0,25694.0,3.30596027]
[1693886496386,0.0195,25695.0,25694.0,3.31040027]
[1693886496591,0.0195,25695.0,25694.0,3.30608027]
[1693886496791,0.0195,25695.0,25694.0,3.30272027]
[1693886496998,0.0195,25695.0,25694.0,3.30296027]
[1693886497242,0.0195,25695.0,25694.0,3.30344027]
[1693886497447,0.0195,25695.0,25694.0,3.30260027]
[1693886497867,0.0195,25695.0,25694.0,3.30296027]
[1693886498042,0.0195,25695.0,25694.0,3.30260027]
[1693886498270,0.0195,25695.0,25694.0,3.30380027]
[1693886498442,0.0195,25695.0,25694.0,3.31424027]
[1693886498624,0.0195,25695.0,25694.0,3.31472027]
[1693886498825,0.0195,25695.0,25694.0,3.31328027]
[1693886499023,0.0195,25695.0,25694.0,3.31316027]
[1693886499272,0.0195,25695.0,25694.0,3.31484027]
[1693886499473,0.0195,25695.0,25694.0,3.31364027]
[1693886499914,0.0195,25695.0,25694.0,3.31352027]
[1693886500095,0.0195,25695.0,25694.0,3.31364027]
[1693886500295,0.0195,25695.0,25694.0,3.31400027]
[1693886500817,0.0195,25695.0,25694.0,3.31436027]
[1693886501280,0.0195,25695.0,25694.0,3.53543367]
[1693886501479,0.0195,25695.0,25694.0,3.34593176]
[1693886501687,0.0195,25695.0,25694.0,3.34509176]
[1693886501914,0.0195,25695.0,25694.0,3.35745176]
[1693886502119,0.0195,25695.0,25694.0,3.34905176]
[1693886502328,0.0195,25695.0,25694.0,3.35421176]
[1693886502532,0.0195,25695.0,25694.0,3.35361176]
[1693886502735,0.0195,25695.0,25694.0,3.35949176]
[1693886503157,0.0195,25695.0,25694.0,3.36489176]
[1693886503365,0.0195,25695.0,25694.0,3.36621176]
[1693886503573,0.0195,25695.0,25694.0,3.34245176]
[1693886503811,0.0195,25695.0,25694.0,3.39262945]
[1693886503987,0.0195,25695.0,25694.0,3.39298945]
[1693886504190,0.0195,25695.0,25694.0,3.39430945]
[1693886504402,0.0195,25695.0,25694.0,3.39550945]
[1693886504650,0.0195,25695.0,25694.0,3.39562945]
[1693886504915,0.0195,25695.0,25694.0,3.39502945]
[1693886505119,0.0195,25695.0,25694.0,3.39466945]
[1693886505329,0.0195,25695.0,25694.0,3.39394945]
[1693886505533,0.0195,25695.0,25694.0,3.39538945]
[1693886505746,0.0195,25695.0,25694.0,3.39502945]
[1693886505922,0.0195,25695.0,25694.0,3.39586945]
[1693886506132,0.0195,25695.0,25694.0,3.39838945]
[1693886506267,0.0195,25695.0,25694.0,3.42754945]
[1693886506478,0.0195,25695.0,25694.0,3.43690945]
[1693886506675,0.0195,25695.0,25694.0,3.43270945]
[1693886506878,0.0195,25695.0,25694.0,3.43678945]
[1693886507079,0.0195,25695.0,25694.0,3.43702945]
[1693886507320,0.0195,25695.0,25694.0,3.44266945]
[1693886507843,0.0195,25695.0,25694.0,3.45178945]
[1693886508039,0.0195,25695.0,25694.0,3.45298945]
[1693886508249,0.0195,25695.0,25694.0,3.43138945]
[1693886508399,0.0195,25695.0,25694.0,3.43294945]
[1693886508604,0.0195,25695.0,25694.0,3.43822945]
[1693886508830,0.0195,25695.0,25694.0,3.44758945]
[1693886509035,0.0195,25695.0,25694.0,3.45274945]
[1693886509236,0.0195,25695.0,25694.0,3.45442945]
[1693886509443,0.0195,25695.0,25694.0,3.45466945]
[1693886509621,0.0195,25695.0,25694.0,3.45394945]
[1693886509823,0.0195,25695.0,25694.0,3.44926945]
[1693886510059,0.0195,25695.0,25694.0,3.45142945]
[1693886510255,0.0195,25695.0,25694.0,3.45238945]